Cogmind - Beta 15 @@@ ROGUE MODE // 2025.07.24 @ 13:05:32 Player: beans Result: Destroyed by D-53 Grenadier with Mini Grenade Launcher Performance ------------- Evolutions (0) 0 Regions Visited (2) 400 Robots Destroyed (8) 40 Value Destroyed (250) 250 Prototype IDs (1) 20 Alien Tech Used (0) 0 Bonus (0) 0 TOTAL SCORE: 710 Bonus ------- None Cogmind --------- Core Integrity 0/250 Matter 295/300 Energy 100/100 System Corruption 0% Temperature Cool (1) Movement Flying (40) Location -10/Mines Parts ------- > --- POWER (1) -------- (None) > --- PROPULSION (2) --- Improved Flight Unit > --- UTILITY (2) ------ (None) > --- WEAPON (2) ------- (None) > --- INVENTORY (5) ---- Makeshift Leg Peak State ------------ > --- POWER ------------ Light Ion Engine > --- PROPULSION ------- Improved Flight Unit Improved Flight Unit > --- UTILITY ---------- Heat Sink > --- WEAPON ----------- Beam Rifle Beam Rifle > --- INVENTORY -------- Improved Flight Unit [Rating: 12] Favorites ----------- Power Light Ion Engine Engine Light Ion Engine Propulsion Improved Flight Unit Treads Light Treads Flight Unit Improved Flight Unit Utility Heat Sink Device Heat Sink Weapon Beam Rifle Energy Gun Beam Rifle Build | -11 -10 -10 ------- Run | Yrd Mat Min Slots Evolved . | . . . Power . | . . . Propulsion . | . . . Utility . | . . . Weapon . | . . . Parts Attached 10 | 4 5 1 Power 1 | 1 . . Engine 1 | 1 . . Core . | . . . Reactor . | . . . Propulsion 5 | 2 2 1 Treads 2 | 2 . . Leg . | . . . Wheel . | . . . Hover . | . . . Flight 3 | . 2 1 Utility 1 | . 1 . Device 1 | . 1 . Storage . | . . . Processor . | . . . Hackware . | . . . Protection . | . . . Artifact . | . . . Weapon 3 | 1 2 . Energy Gun 3 | 1 2 . Energy Cannon . | . . . Ballistic Gun . | . . . Ballistic Cannon . | . . . Launcher . | . . . Special Weapon . | . . . Impact Weapon . | . . . Slashing Weapon . | . . . Piercing Weapon . | . . . Special Melee Weapon . | . . . Unidentified Prototypes 1 | . 1 . Parts Lost 6 | . 1 5 Power 1 | . . 1 Propulsion 2 | . . 2 Utility 1 | . 1 . Weapon 2 | . . 2 Highest Loss Streak 5 | . 1 5 To Critical Strikes . | . . . Average Backups . | . . . Power . | . . . Propulsion . | . . . Utility . | . . . Weapon . | . . . Tool/Special . | . . . Unused Backups 1 | . 1 . Power . | . . . Propulsion 1 | . 1 . Utility . | . . . Weapon . | . . . Tool/Special . | . . . Average Slot Usage (%) 71 | . 74 68 Engine 14 | . 14 14 Treads 1 | . 2 . Flight 26 | . 25 27 Device 3 | . 6 . Energy Gun 25 | . 25 26 Peak Build Rating 12 | 4 12 11 Average Rating 9 | 3 10 10 On Entrance 5 | . 4 11 Naked Turns . | . . . Heaviest Build 10 | 5 10 9 Greatest Support 40 | 40 40 10 Greatest Overweight (x) . | . . . Average Overweight (x) . | . . . Largest Inventory Capacity 5 | 5 5 5 Average Capacity 5 | 5 5 5 Most Carried 2 | 2 2 1 Average Carried . | . . . Final Capacity 5 | 5 5 5 Final Carried 1 | . 1 1 Class Distribution -------------------- 100% | Mutant Dominant Class ---------------- Mutant | -10/Materials Mutant | -10/Mines Resources | -11 -10 -10 ----------- Run | Yrd Mat Min Matter Collected 290 | 209 81 . Remotely . | . . . Salvage Created 314 | . 184 130 Parts 14 | . 6 8 Haulers Intercepted 1 | . 1 . Recyclers Shooed . | . . . Parts Field Recycled . | . . . Retrieved Matter . | . . . Parts Self-Destructed . | . . . Prevented . | . . . Kills | -11 -10 -10 ------- Run | Yrd Mat Min Combat Hostiles Destroyed 6 | . 3 3 Guns 6 | . 3 3 Classes Destroyed 3 | . 2 1 Builder 1 | . . 1 Hauler 1 | . 1 . Grunt 6 | . 3 3 Best Kill Streak 3 | . 2 3 Combat Bots Only 2 | . 2 2 Max Kills in Single Turn 1 | . 1 1 Gunslinging . | . . . Exploded . | . . . Melee . | . . . Uniques/NPCs Destroyed . | . . . Combat | -11 -10 -10 -------- Run | Yrd Mat Min Hostile Shots Fired 33 | . 17 16 Missed 10 | . 6 4 Hits 23 | . 11 12 Projectile 23 | . 11 12 AOE 8 | . . 8 Damage Taken 539 | . 130 409 Core 274 | . 65 209 Absorbed by Shields . | . . . Core Remaining (%) 100 | 100 . . Volleys Fired 41 | . 32 9 Largest 2 | . 2 2 Hottest 112 | . 112 112 Shots Fired 63 | . 46 17 Gun 63 | . 46 17 Cannon . | . . . Launcher . | . . . Special . | . . . Kinetic . | . . . Thermal 63 | . 46 17 Explosive . | . . . Electromagnetic . | . . . Robot Hit Streak 8 | . 8 6 Robot Miss Streak 2 | . 2 2 Penetration Max . | . . . Secondary Targets 2 | . . 2 Max Gunslinging Chain 1 | . . 1 Shots Hit Robots 35 | . 24 11 Core Hits 15 | . 9 6 Critical Kills . | . . . Critical Parts Destroyed . | . . . Critical Strikes 4 | . 4 . Burn 4 | . 4 . Melee Attacks . | . . . Impact . | . . . Slashing . | . . . Piercing . | . . . Sneak Attacks . | . . . Combat Hostiles . | . . . Follow-up Attacks . | . . . Damage Inflicted 509 | . 349 160 Guns 509 | . 349 160 Cannons . | . . . Explosions . | . . . Melee . | . . . Ramming . | . . . Kinetic . | . . . Thermal 509 | . 349 160 Explosive . | . . . Electromagnetic . | . . . Impact . | . . . Slashing . | . . . Piercing . | . . . Highest Corruption . | . . . Average Corruption . | . . . Corruption Purged . | . . . Corruption Blocked . | . . . Overload Shots . | . . . Overflow Damage . | . . . Projectiles . | . . . Explosions . | . . . Melee . | . . . Knockbacks . | . . . Impact . | . . . Kinetic . | . . . Secondary . | . . . Self-Inflicted Damage . | . . . Shots . | . . . Rammed . | . . . Targets Rammed . | . . . Kicked . | . . . Crushed . | . . . Highest Temperature 369 | . 369 313 Average Temperature 135 | . 143 121 Received Heat Transfer 114 | . 75 39 Effects 3 | . 3 . Shutdowns 1 | . 1 . Interference 1 | . 1 . Damage (minor) 1 | . 1 . Siege Activations . | . . . Martial Activations . | . . . Shielding Activations . | . . . Robots Disrupted . | . . . Combat Hostiles . | . . . Robots Corrupted . | . . . Combat Hostiles . | . . . Parts Fried . | . . . Impact Corruptions . | . . . Robots Melted . | . . . Combat Hostiles . | . . . Parts Melted 6 | . 1 5 Heat Transferred 1591 | . 1184 407 Parts Sabotaged . | . . . Parts Stolen . | . . . Parts Stripped . | . . . Power Chain Reactions . | . . . Alert | -11 -10 -10 ------- Run | Yrd Mat Min Maximum Alert Level . | . . . Low Security (%) 100 | 100 100 100 Level 1 . | . . . Level 2 . | . . . Level 3 . | . . . Level 4 . | . . . Level 5 . | . . . High Security . | . . . Max Security . | . . . Peak Influence 65 | . 65 61 Initial 15 | . . 15 Average 21 | . 25 25 Influence Increases 200 | . 109 91 Destroy 0b10 Robot/C 120 | . 60 60 Destroy 0b10 Robot/NC 10 | . 5 5 Destroy Leader 32 | . 12 20 Allied During Kill 6 | . . 6 Destroy Structure 2 | . 2 . Lose Combat Pursuer 30 | . 30 . Influence Decreases 200 | . 70 130 Entered New Map 24 | . . 24 Time Decay 126 | . 60 66 Lost Part 50 | . 10 40 Squads Dispatched 1 | . 1 . Investigation . | . . . Extermination . | . . . Reinforcement 1 | . 1 . Assault . | . . . Garrison . | . . . Intercept . | . . . Searches Triggered . | . . . Construction Impeded . | . . . Haulers Reinforced . | . . . Active Scanning Responses . | . . . Cargo Convoy Interrupts . | . . . Stealth | -11 -10 -10 --------- Run | Yrd Mat Min Distress Signals 2 | . 1 1 Communications Jammed . | . . . Distress Signals . | . . . Times Spotted 13 | . 7 6 Peak Tracking Total 3 | . 3 2 Tactical Retreats 2 | . 2 . Traps | -11 -10 -10 ------- Run | Yrd Mat Min Traps Triggered . | . . . Indirectly . | . . . Trap Hack Attempts . | . . . Triggered . | . . . Disarmed . | . . . Reprogrammed . | . . . Reused . | . . . Traps Extracted . | . . . Installed . | . . . Triggered . | . . . Machines | -11 -10 -10 ---------- Run | Yrd Mat Min Machines Disabled . | . . . Max in Single Turn . | . . . Machines Repaired . | . . . Machines Dismantled . | . . . Machines Sabotaged . | . . . Overloaded Fab Kills . | . . . Hacking | -11 -10 -10 --------- Run | Yrd Mat Min Machines Accessed . | . . . Terminals . | . . . Fabricators . | . . . Repair Stations . | . . . Recycling Units . | . . . Scanalyzers . | . . . Garrison Access . | . . . Total Hacks . | . . . Successful . | . . . Failed . | . . . Catastrophic . | . . . Database Lockouts . | . . . Manual . | . . . Terminals . | . . . Fabricators . | . . . Repair Stations . | . . . Recycling Units . | . . . Scanalyzers . | . . . Garrison Access . | . . . Terminal Hacks . | . . . Fabricator Hacks . | . . . Repair Station Hacks . | . . . Recycling Unit Hacks . | . . . Scanalyzer . | . . . Garrison Access Hacks . | . . . Unauthorized Hacks . | . . . Terminals . | . . . Fabricators . | . . . Repair Stations . | . . . Recycling Units . | . . . Scanalyzers . | . . . Garrison Access . | . . . Data Cores Recovered . | . . . Used . | . . . Hacking Detections . | . . . Full Trace Events . | . . . Feedback Events . | . . . Feedback Blocked . | . . . Robot Schematics Acquired . | . . . Robots Built . | . . . Authchips . | . . . Time . | . . . Total Robot Build Rating . | . . . Part Schematics Acquired . | . . . Parts Built . | . . . Authchips . | . . . Time . | . . . Total Part Build Rating . | . . . Parts Repaired . | . . . Time . | . . . Parts Recycled . | . . . Recycled Matter . | . . . Retrieved Matter . | . . . Retrieved Components . | . . . Parts Scanalyzed . | . . . Part Schematics Acquired . | . . . Parts Damaged . | . . . Bothacking | -11 -10 -10 ------------ Run | Yrd Mat Min Used RIF Installer . | . . . Robots Hacked . | . . . Non-combat . | . . . Combat . | . . . Robot Hacks Applied . | . . . Relay Couplers Released . | . . . Fabnet Peak Effective % . | . . . Robots Rewired . | . . . Allies Hacked . | . . . Hacks Repelled . | . . . Allies | -11 -10 -10 -------- Run | Yrd Mat Min Total Allies 2 | . . 2 Largest Group 2 | . . 2 Highest-Rated Group 38 | . . 38 Highest-Rated Ally 31 | . . 31 Total Orders . | . . . Ally Attacks 1 | . . 1 Total Damage . | . . . Kills . | . . . Allies Corrupted . | . . . Allies Melted . | . . . Intel | -11 -10 -10 ------- Run | Yrd Mat Min Active Infowar (turns) . | . . . Robot Analysis Total . | . . . Derelict Logs Recovered . | . . . Drone Launches . | . . . Drone Recoveries . | . . . Exploration | -11 -10 -10 ------------- Run | Yrd Mat Min Turns Passed 433 | 63 183 187 Spaces Moved 535 | 41 129 365 Core 10 | 9 1 . Treads 37 | 32 5 . Legs . | . . . Wheels . | . . . Hover . | . . . Flight 488 | . 123 365 Fastest Speed 37 | 50 37 37 Average Speed 45 | 135 41 37 Slowest Speed 160 | 160 160 40 Overloaded Moves . | . . . Propulsion Burnouts . | . . . Robots Hopped 3 | . 1 2 Potential Cave-ins . | . . . Cave-ins Triggered . | . . . Exploration Rate (%) 34 | 4 25 75 Regions Visited 2 Branch Regions 1 Pre-discovered Areas . | . . . Known Exits Taken . | . . . Unknown Exits Taken 2 | 1 1 . Scrap Searched . | . . . Spaces Dug . | . . . Terrain Destroyed . | . . . Melee . | . . . Projectile . | . . . AOE . | . . . Terrain Rammed . | . . . Walls Destroyed . | . . . Machines Disabled . | . . . Actions | -11 -10 -10 --------- Run | Yrd Mat Min Total 657 | 48 212 397 Wait 60 | . 37 23 Move 527 | 40 126 361 Hop 3 | . 1 2 Pick Up 12 | 4 7 1 Fast Attach . | . . . Attach 10 | 4 5 1 Detach . | . . . Swap . | . . . Drop 4 | . 4 . Fire 41 | . 32 9 Melee . | . . . Ram . | . . . Kick . | . . . Crush . | . . . Escape Stasis . | . . . Rewire . | . . . Trap . | . . . Miscellaneous . | . . . Route ------- -11/Scrapyard -10/Materials -10/Mines (discovered 1 exit: [*Mat]) History --------- Turn | Location | Event 3 | -11/Scrapyard | Discovered new exit (range 16) 64 | -11/Scrapyard | Entered Materials 241 | -10/Materials | Discovered new exit (range 8) 247 | -10/Materials | Entered Mines 248 | -10/Mines | Assembled infested the area 253 | -10/Mines | Assisted by a Guerilla fighting off Assembled 274 | -10/Mines | Found a hidden stash of uninstalled traps 303 | -10/Mines | Build established: Mutant 313 | -10/Mines | A weapon hastily lodged in a ceiling crevice suddenly fell to the ground 381 | -10/Mines | Discovered new exit (range 6) 423 | -10/Mines | Core integrity fell below 50% 434 | -10/Mines | Destroyed by D-53 Grenadier with Mini Grenade Launcher Last Messages --------------- Terrain Scanner melted. U-05 Engineer destroyed. U-05 Engineer lays Concrete. U-05 Engineer builds a Wall. G-34 Mercenary destroyed. Switching to secondary target: G-47 Trooper. U-05 Engineer builds a Wall. G-47 Trooper destroyed. U-05 Engineer lays Concrete. U-05 Engineer builds a Wall. EXIT=FOUND U-05 Engineer lays Concrete. U-05 Engineer builds a Wall. Imp. Flight Unit destroyed. Beam Rifle destroyed. The unstable cave ceiling collapses. X9-640(g) destroyed. QW-K6P(z) destroyed. Acquired Mak. Leg. Lgt. Ion Engine destroyed. Map ----- +----------------------------------------------------+ | ???????????????## #????????# ##??# ## " | | ????????????????# #????????# #### #???# ## | | ????????????????# #??????? ##### #???# ## | | ????????????????# #????? ### #???# ## | | ????????????????# #????# ######??# ####???# ## | | ?##########?????# #??? ?????????# #??????# | | ?# #????## #??# ???######## #??????#### # | | ?# #?#### ##? ????# ## #?????????# ## | | ?# #?# ##??????# #?????????# #? | | ?# < ### ## ##??????# ## #?????????# ## | | ?# =## #### ## # ## * [ ## #????????## | | ?# %%%=%= #%% %*## #???###### ## | | ?# """ =##!*# #### ######### ##### ## # | | ?# """ ## # #???? # #?????# | | ?# """ ### # #????? " ???????######## | | ?# #?### #??????? ????????????###### | | ?##########??## #???????? ???????????????## | | ??????????????# #????????? ??????????????## | | ??????????????# #??????????? ???????????????# | | ??????????????# #######?????? ???????????????# | | ??????????????# #??????????????????????# | | ????????####??# ##### #####??????????????????## && | | ???????## #### #??## # #########???????????##& | | ???????# ## #### # ##???????????# & | | ???????# ## ##??????????# | | ??????## @% #??????????# | | ?????## #####?####### | | ????## d ## | | ????# ### d | | ???# ##?###### ######### | | ??# """ #???????## ##??????# | | ?# """ #????????## # ##???????# | | ?# """ #?????????#######????????## ## | | ?# ##?????????????????????????###?## | | ?# ###???????????????????????????????# | | ?## ### ####?????????????????????????????????# | | ??###??## ##????????????????????????????????????# | | ????????####?????????????????????????????????????? | | ?????????????????????????????????????????????????? | | ?????????????????????????????????????????????????? | | | | | | | | | | | | | | | | | | | | | +----------------------------------------------------+ Best States ------------- Heat Dissipation 35 Energy Generation 10 Energy Capacity 125 Matter Stores 300 Matter Capacity 300 Sight Range 16 Terrain Scan Density 10 Evasion (%) 62 Recoil Reduction 2 Item Schematics ----------------- None Robot Schematics ------------------ None Fabricated ------------ Nothing Repaired ---------- Nothing Alien Tech Used ----------------- None Achievements -------------- None Challenges ------------ None Game ------ Seed CargoSubdwellerRecalibrator Manual? 0 Play Time 00:06:44 Cumulative 68.3 hours Start 2025.07.24 @ 13:00:55 End 2025.07.24 @ 13:05:32 Sessions 1 Manual Loads 0 Difficulty Rogue Special Mode None Game No. 284 Rogue 284 Adventurer 0 Explorer 0 Win Type - Total 0 Types 0/0/0/0/0/0/0/0/0/0 Lore% 43 Gallery% 32 Achievement% 26 Wizard Run 0 Options --------- Layout 2 ASCII 0 Keyboard 0 Movement Mouse Keybinds 0 Fullscreen 1 Font 24/Terminus Map View 50x44 Zoom Use 0% Tactical HUD 0 Map Filters NONE Filters NONE Steam 1 RUN: eb9e8e39-450d-46d2-aa22-43549b8f5919